[Event "German Masters Women 2018"]
[Site "Dresden"]
[Date "2018.08.06"]
[Round "3.5"]
[White "Osmanodja, Filiz"]
[Black "Schneider, Jana"]
[Result "1/2-1/2"]
[ECO "C96"]
[WhiteElo "2350"]
[BlackElo "2179"]
[Annotator "NA"]
[PlyCount "83"]
[EventDate "2018.08.04"]
[EventType "tourn"]
[EventCountry "GER"]
[SourceTitle "playchess.com"]
[Source "ChessBase"]
[SourceQuality "1"]
[TimeControl "40/5400+30:1800+30"]

1. e4 {[%emt 1:30:28]} e5 {[%emt 1:30:23]} 2. Nf3 {[%emt 1:30:56]} Nc6 {[%emt 1:30:43]} 3. Bb5 {[%emt 1:31:24]} a6 {[%emt 1:31:04]} 4. Ba4 {[%emt 1:31:52]} Nf6 {[%emt 1:31:23]} 5. O-O {[%emt 1:32:10]} Be7 {[%emt 1:31:08] LiveBook: 35970 Games} 6. Re1 {[%emt 1:32:38]} b5 {[%emt 1:31:26]} 7. Bb3 {[%emt 1:33:07]} d6 {[%emt 1:31:29]} 8. c3 {[%emt 1:33:26]} O-O {[%emt 1:31:48]} 9. h3 {[%emt 1:33:55]} Na5 {[%emt 1:32:04]} 10. Bc2 {[%emt 1:33:47]} c5 {[%emt 1:32:25]} 11. d4 {[%emt 1:33:49]} Nd7 {[%emt 1:32:42]} 12. a4 {[%emt 1:27:45]} exd4 {[%emt 1:32:10] C96: Closed Ruy Lopez: Chigorin Defence: 11 d4, replies other than 11...Qc7} (12... b4 13. Nbd2 Rb8 14. Nf1 b3 15. Bd3 exd4 16. cxd4 c4 17. Be2 c3 18. Ng3 Nf6 19. Bd3 Nc6 20. d5 {0-1 (37) Quesada Perez,Y (2627)-Caruana,F (2811) chess.com INT 2018}) 13. cxd4 {[%emt 1:26:24]} b4 {[%emt 1:31:12]} 14. b3 {[%emt 1:24:19]} Bb7 {[%emt 1:24:40]} 15. Nbd2 $146 {[%emt 1:20:03]} ({Predecessor:} 15. Be3 Re8 16. Nbd2 Rc8 17. Bd3 cxd4 18. Bxd4 Bf6 19. Bxf6 Qxf6 20. Qb1 h6 21. Nc4 Nxc4 22. Bxc4 Nc5 {½-½ (22) Wetjen,A (1998)-Schuetze,M (1631) Binz 2014}) 15... Rc8 {[%emt 1:21:58]} 16. Bb2 {[%emt 1:19:00]} Re8 {[%emt 1:16:57]} 17. Rc1 $11 {[%emt 1:16:12]} Bf6 {[%emt 1:04:10]} 18. e5 {[%emt 1:13:13]} Be7 {[%emt 1:01:53]} 19. Bf5 {[%emt 0:59:49]} Bd5 {[%emt 0:42:39]} 20. Nc4 {[%emt 0:52:20]} Nxc4 {[%emt 0:40:12]} 21. bxc4 {[%emt 0:50:13]} Be6 {[%emt 0:39:57]} 22. Be4 {[%emt 0:44:43]} cxd4 {[%emt 0:35:09]} 23. exd6 {[%emt 0:42:30]} Bxd6 {[%emt 0:32:38]} 24. Qxd4 {[%emt 0:42:40]} Bf8 {[%emt 0:31:05]} 25. Bb7 {[%emt 0:40:13]} Rb8 {[%emt 0:30:48]} 26. Bxa6 {[%emt 0:37:44]} Nc5 {[%emt 0:28:11]} 27. Bb5 {[%emt 0:37:44]} Nb3 {[%emt 0:17:05]} 28. Qxd8 {[%emt 0:34:24]} Rexd8 {[%emt 0:14:50]} 29. Rcd1 {[%emt 0:34:29]} Na5 {[%emt 0:14:14]} 30. Ne5 {[%emt 0:28:06]} Rxd1 {[%emt 0:12:05]} 31. Rxd1 {[%emt 0:28:34]} Rc8 {[%emt 0:12:26]} 32. Rd4 {[%emt 0:21:01]} f6 {[%emt 0:11:44]} 33. Nd7 {[%emt 0:16:10]} Nxc4 {[%emt 0:11:16]} 34. Bxc4 {[%emt 0:12:06]} Rxc4 {[%emt 0:11:24]} 35. Nxf8 {[%emt 0:09:26]} Kxf8 {[%emt 0:11:48]} 36. a5 {[%emt 0:07:46]} Rc5 {[%emt 0:07:49]} 37. a6 {[%emt 0:06:37]} Ra5 {[%emt 0:08:12]} 38. Rxb4 {[%emt 0:05:25]} Rxa6 {[%emt 0:08:34]} 39. Rb7 {[%emt 0:05:39]} Bd5 {[%emt 0:07:31]} 40. Rd7 {[%emt 0:05:46]} Be6 {[%emt 0:07:42]} 41. Rc7 {[%emt 0:06:05]} Ra4 {[%emt 0:07:16]} 42. Bc3 {[%emt 0:05:50]} 1/2-1/2

[Event "German Masters Women 2018"]
[Site "Dresden"]
[Date "2018.08.07"]
[Round "4.1"]
[White "Kachiani-Gersinska, Ketino"]
[Black "Schneider, Jana"]
[Result "0-1"]
[ECO "D02"]
[WhiteElo "2347"]
[BlackElo "2179"]
[Annotator "NA"]
[PlyCount "76"]
[EventDate "2018.08.04"]
[EventType "tourn"]
[EventCountry "GER"]
[SourceTitle "playchess.com"]
[Source "ChessBase"]
[SourceQuality "1"]
[TimeControl "40/5400+30:1800+30"]

1. Nf3 {[%emt 1:30:00]} d5 {[%emt 1:30:16]} 2. g3 {[%emt 1:30:25]} Nd7 {[%emt 1:30:35]} 3. d4 {[%emt 1:29:43]} Ngf6 {[%emt 1:30:40]} 4. Bg2 {[%emt 1:29:43]} b5 {[%emt 1:30:34]} 5. Bg5 {[%emt 1:17:21]} e6 {[%emt 1:28:11]} 6. Nbd2 {[%emt 1:12:51]} Bb7 {[%emt 1:24:19]} 7. a4 {[%emt 1:10:01]} b4 {[%emt 1:23:39]} 8. a5 {[%emt 1:09:59]} Ba6 {[%emt 1:16:01]} 9. O-O {[%emt 1:03:23]} Be7 {[%emt 1:13:23]} 10. Re1 {[%emt 0:57:48]} O-O {[%emt 1:12:04]} 11. e4 {[%emt 0:50:07]} h6 $14 {[%emt 1:06:53]} 12. exd5 {[%emt 0:49:29]} Nxd5 {[%emt 1:04:30]} 13. Bxe7 {[%emt 0:47:35]} Nxe7 {[%emt 1:00:45]} 14. Ne4 {[%emt 0:37:09]} Rc8 {[%emt 0:57:43]} 15. Ne5 {[%emt 0:36:32]} Nxe5 {[%emt 0:54:58]} 16. dxe5 {[%emt 0:36:57]} Qxd1 {[%emt 0:53:46]} 17. Raxd1 {[%emt 0:35:35]} Rfd8 {[%emt 0:48:09]} 18. Nc5 {[%emt 0:35:24]} Bb5 {[%emt 0:47:28]} 19. Bb7 {[%emt 0:29:44]} Rb8 {[%emt 0:46:26]} 20. f4 {[%emt 0:19:33]} Nc6 {[%emt 0:36:09]} 21. a6 {[%emt 0:17:19]} Nd4 {[%emt 0:36:13]} 22. Be4 {[%emt 0:17:34]} Kf8 {[%emt 0:26:37]} 23. Kf2 {[%emt 0:16:27]} Ke7 {[%emt 0:26:18]} 24. Nb7 {[%emt 0:14:06]} Rd7 {[%emt 0:26:17]} 25. Nc5 {[%emt 0:13:49]} Rdd8 {[%emt 0:26:44]} 26. g4 {[%emt 0:13:15]} Rb6 {[%emt 0:25:17]} 27. Ke3 {[%emt 0:08:27]} Nc6 {[%emt 0:23:21]} 28. Rxd8 {[%emt 0:08:39]} Nxd8 {[%emt 0:21:45]} 29. Rd1 {[%emt 0:07:34]} Ke8 {[%emt 0:18:31]} 30. f5 {[%emt 0:04:59]} Nc6 {[%emt 0:12:09]} 31. f6 {[%emt 0:00:47]} g5 {[%emt 0:12:15]} 32. Nb7 {[%emt 0:00:53]} Kf8 {[%emt 0:11:39]} 33. Rd7 {[%emt 0:00:33]} Nxe5 {[%emt 0:11:15]} 34. Rxc7 {[%emt 0:00:13]} Nxg4+ {[%emt 0:10:20]} 35. Kf3 {[%emt 0:00:42]} Nxf6 {[%emt 0:10:31]} 36. Nd8 {[%emt 0:00:58]} Nd7 {[%emt 0:09:08]} 37. Rxa7 {[%emt 0:01:16]} Rxa6 {[%emt 0:09:08]} 38. Rb7 {[%emt 0:00:07]} Rb6 {[%emt 0:08:33]} 0-1

[Event "German Masters Women 2018"]
[Site "Dresden"]
[Date "2018.08.07"]
[Round "4.2"]
[White "Sieber, Fiona"]
[Black "Osmanodja, Filiz"]
[Result "1-0"]
[ECO "C95"]
[WhiteElo "2290"]
[BlackElo "2350"]
[Annotator "NA"]
[PlyCount "89"]
[EventDate "2018.08.04"]
[EventType "tourn"]
[EventCountry "GER"]
[SourceTitle "playchess.com"]
[Source "ChessBase"]
[SourceQuality "1"]
[TimeControl "40/5400+30:1800+30"]

1. e4 {[%emt 1:30:27]} e5 {[%emt 1:29:57]} 2. Nf3 {[%emt 1:30:51]} Nc6 {[%emt 1:30:25]} 3. Bb5 {[%emt 1:31:15]} a6 {[%emt 1:30:48]} 4. Ba4 {[%emt 1:31:41]} Nf6 {[%emt 1:31:10]} 5. O-O {[%emt 1:32:04]} Be7 {[%emt 1:30:46]} 6. Re1 {[%emt 1:32:24]} b5 {[%emt 1:31:09]} 7. Bb3 {[%emt 1:32:49]} d6 {[%emt 1:31:36]} 8. c3 {[%emt 1:33:14]} O-O {[%emt 1:32:00]} 9. h3 {[%emt 1:33:40]} Nb8 {[%emt 1:31:55]} 10. d4 {[%emt 1:34:05]} Nbd7 {[%emt 1:32:20]} 11. Nbd2 {[%emt 1:34:16]} Bb7 {[%emt 1:32:38]} 12. Bc2 {[%emt 1:34:39]} Re8 {[%emt 1:32:22]} 13. Nf1 {[%emt 1:34:56]} Bf8 {[%emt 1:31:53]} 14. Ng3 {[%emt 1:35:21]} g6 {[%emt 1:32:08]} 15. a4 {[%emt 1:35:42]} Bg7 {[%emt 1:32:17]} 16. Bd3 {[%emt 1:36:01]} c6 {[%emt 1:32:39]} 17. Be3 {[%emt 1:36:22]} Qc7 {[%emt 1:30:38]} 18. Qd2 {[%emt 1:36:23]} Nf8 {[%emt 1:19:16]} 19. Bh6 {[%emt 1:36:33]} Ne6 {[%emt 1:18:21]} 20. Bc2 {[%emt 1:36:21]} Rad8 {[%emt 1:16:37]} 21. axb5 {[%emt 1:29:54]} axb5 {[%emt 1:14:38]} 22. Bb3 {[%emt 1:18:50]} Bc8 $14 {[%emt 0:52:30]} 23. Qe3 {[%emt 0:59:26]} c5 {[%emt 0:41:27]} 24. d5 {[%emt 0:58:04]} Nf8 {[%emt 0:41:12]} 25. Bd1 {[%emt 0:51:45]} Bd7 {[%emt 0:32:34]} 26. Bxg7 {[%emt 0:47:49]} Kxg7 {[%emt 0:33:01]} 27. b4 {[%emt 0:48:02]} h6 {[%emt 0:25:12]} 28. Be2 {[%emt 0:47:30]} Ra8 {[%emt 0:24:54]} 29. bxc5 {[%emt 0:41:21]} dxc5 {[%emt 0:24:46]} 30. Reb1 {[%emt 0:40:07]} Ra4 {[%emt 0:19:39]} 31. Bd1 {[%emt 0:34:59]} Ra7 {[%emt 0:15:55]} 32. Rxa7 {[%emt 0:22:34]} Qxa7 {[%emt 0:16:24]} 33. Be2 {[%emt 0:22:42]} Qa2 {[%emt 0:12:04]} 34. Qc1 {[%emt 0:22:48]} Nxe4 {[%emt 0:08:53]} 35. Nxe4 {[%emt 0:18:33]} Qxe2 {[%emt 0:08:51]} 36. Nd6 {[%emt 0:16:51]} e4 {[%emt 0:01:04]} 37. Nxe8+ {[%emt 0:14:51]} Bxe8 {[%emt 0:01:33]} 38. Ne5 {[%emt 0:12:16]} Qa2 {[%emt 0:00:36]} 39. Ng4 {[%emt 0:11:56]} g5 {[%emt 0:00:21]} 40. Ne3 {[%emt 0:11:00]} Bd7 {[%emt 0:00:16]} 41. Ra1 {[%emt 0:11:15]} Qe2 {[%emt 0:28:01]} 42. Qa3 {[%emt 0:36:55]} Ng6 {[%emt 0:18:03]} 43. Qxc5 {[%emt 0:36:20]} Bxh3 {[%emt 0:18:23]} 44. Qd4+ {[%emt 0:35:03]} Kh7 {[%emt 0:18:50]} 45. Qf6 {[%emt 0:33:19]} 1-0

[Event "German Masters Women 2018"]
[Site "Dresden"]
[Date "2018.08.07"]
[Round "4.3"]
[White "Fuchs, Judith"]
[Black "Heinemann, Josefine"]
[Result "1/2-1/2"]
[ECO "C47"]
[WhiteElo "2276"]
[BlackElo "2261"]
[Annotator "NA"]
[PlyCount "63"]
[EventDate "2018.08.04"]
[EventType "tourn"]
[EventCountry "GER"]
[SourceTitle "playchess.com"]
[Source "ChessBase"]
[SourceQuality "1"]
[TimeControl "40/5400+30:1800+30"]

1. e4 {[%emt 1:30:27]} e5 {[%emt 1:30:24]} 2. Nf3 {[%emt 1:30:52]} Nc6 {[%emt 1:30:51]} 3. d4 {[%emt 1:31:13]} exd4 {[%emt 1:31:16]} 4. Nxd4 {[%emt 1:31:37]} Nf6 {[%emt 1:31:36]} 5. Nc3 {[%emt 1:31:53]} Bb4 {[%emt 1:31:47]} 6. Nxc6 {[%emt 1:32:16]} bxc6 {[%emt 1:32:13]} 7. Bd3 {[%emt 1:32:39]} d5 {[%emt 1:31:31]} 8. exd5 {[%emt 1:31:31]} cxd5 {[%emt 1:31:55]} 9. O-O {[%emt 1:31:53]} O-O {[%emt 1:32:21]} 10. h3 {[%emt 1:31:56]} Bd6 {[%emt 1:20:44]} 11. Qf3 {[%emt 1:30:14]} c6 {[%emt 1:17:53]} 12. Re1 {[%emt 1:18:46]} Rb8 $11 {[%emt 1:15:17]} 13. Rb1 {[%emt 1:14:04]} Be6 {[%emt 1:10:33]} 14. Bg5 {[%emt 1:02:25]} h6 {[%emt 1:06:16]} 15. Bxf6 {[%emt 0:45:29]} Qxf6 {[%emt 1:05:00]} 16. Qxf6 {[%emt 0:45:54]} gxf6 {[%emt 1:05:28]} 17. Nd1 {[%emt 0:42:08]} Rb6 {[%emt 1:02:35]} 18. b3 {[%emt 0:37:38]} a5 {[%emt 1:02:19]} 19. Ne3 {[%emt 0:35:09]} c5 {[%emt 0:52:01]} 20. c4 {[%emt 0:28:10]} d4 {[%emt 0:51:25]} 21. Nd5 {[%emt 0:28:23]} Bxd5 {[%emt 0:51:19]} 22. cxd5 {[%emt 0:28:47]} a4 {[%emt 0:48:05]} 23. Bc4 {[%emt 0:24:19]} axb3 {[%emt 0:47:29]} 24. axb3 {[%emt 0:24:42]} Ra8 {[%emt 0:46:51]} 25. Ra1 {[%emt 0:24:34]} Rbb8 26. g3 {[%emt 0:24:19]} Kg7 {[%emt 0:45:46]} 27. Kg2 {[%emt 0:24:14]} Rd8 {[%emt 0:43:34]} 28. Kf3 {[%emt 0:21:12]} f5 {[%emt 0:43:12]} 29. Kg2 {[%emt 0:19:58]} Kf6 {[%emt 0:43:31]} 30. Kf3 {[%emt 0:19:25]} Kg7 {[%emt 0:43:54]} 31. Kg2 {[%emt 0:19:37]} Kf6 {[%emt 0:44:19]} 32. Kf3 {[%emt 0:20:04]} 1/2-1/2

[Event "German Masters Women 2018"]
[Site "Dresden"]
[Date "2018.08.07"]
[Round "4.4"]
[White "Schleining, Zoya"]
[Black "Lubbe, Melanie"]
[Result "0-1"]
[ECO "A45"]
[WhiteElo "2397"]
[BlackElo "2338"]
[Annotator "NA"]
[PlyCount "138"]
[EventDate "2018.08.04"]
[EventType "tourn"]
[EventCountry "GER"]
[SourceTitle "playchess.com"]
[Source "ChessBase"]
[SourceQuality "1"]
[TimeControl "40/5400+30:1800+30"]

1. d4 {[%emt 1:30:27]} Nf6 {[%emt 1:30:25]} 2. Bg5 {[%emt 1:30:38]} e6 {[%emt 1:30:42]} 3. Nd2 {[%emt 1:30:59]} h6 {[%emt 1:30:38]} 4. Bh4 {[%emt 1:31:03]} c5 {[%emt 1:28:15]} 5. e4 {[%emt 1:30:47]} d5 {[%emt 1:27:40]} 6. e5 {[%emt 1:30:19]} g5 {[%emt 1:28:05]} 7. Bg3 {[%emt 1:30:27]} Nfd7 {[%emt 1:27:34]} 8. c3 {[%emt 1:16:38]} Nc6 {[%emt 1:25:28]} 9. Ne2 {[%emt 1:11:22]} b6 $11 {[%emt 1:11:19]} 10. h4 {[%emt 1:05:46]} g4 {[%emt 1:06:29]} 11. Nb3 {[%emt 0:54:22]} h5 {[%emt 1:01:21]} 12. Nf4 {[%emt 0:52:39]} cxd4 {[%emt 0:55:12]} 13. Bb5 {[%emt 0:49:03]} Bb7 {[%emt 0:45:16]} 14. cxd4 {[%emt 0:46:46]} Bb4+ {[%emt 0:44:54]} 15. Kf1 {[%emt 0:46:44]} a6 {[%emt 0:35:25]} 16. Bd3 {[%emt 0:46:10]} a5 {[%emt 0:34:56]} 17. a4 {[%emt 0:41:49]} Be7 {[%emt 0:29:08]} 18. Rc1 {[%emt 0:35:30]} Nb4 {[%emt 0:26:55]} 19. Bb5 {[%emt 0:35:32]} Ba6 {[%emt 0:24:11]} 20. Bxa6 {[%emt 0:33:26]} Rxa6 {[%emt 0:23:23]} 21. f3 {[%emt 0:30:18]} Nb8 {[%emt 0:19:25]} 22. fxg4 {[%emt 0:29:27]} hxg4 {[%emt 0:19:52]} 23. Qxg4 {[%emt 0:29:20]} Kd7 {[%emt 0:17:46]} 24. Qe2 {[%emt 0:22:31]} N8c6 {[%emt 0:17:41]} 25. Qb5 {[%emt 0:14:22]} Ra8 {[%emt 0:17:31]} 26. Be1 {[%emt 0:13:54]} Rc8 {[%emt 0:15:47]} 27. Bxb4 {[%emt 0:14:00]} Bxb4 {[%emt 0:15:57]} 28. g3 {[%emt 0:12:40]} Qg8 {[%emt 0:07:22]} 29. Kf2 {[%emt 0:11:39]} Qh7 {[%emt 0:07:26]} 30. Rhf1 {[%emt 0:07:46]} Qf5 {[%emt 0:05:47]} 31. Qd3 {[%emt 0:06:30]} Qg4 {[%emt 0:05:40]} 32. Qf3 {[%emt 0:05:50]} Qf5 {[%emt 0:04:27]} 33. g4 {[%emt 0:05:02]} Qh7 {[%emt 0:04:55]} 34. h5 {[%emt 0:05:03]} Kc7 {[%emt 0:03:09]} 35. Qd3 {[%emt 0:04:09]} Qg7 {[%emt 0:03:34]} 36. Kf3 {[%emt 0:03:10]} Kb7 {[%emt 0:03:34]} 37. Rg1 {[%emt 0:03:04]} Qg5 {[%emt 0:03:20]} 38. Na1 {[%emt 0:01:21]} Bf8 {[%emt 0:02:51]} 39. Nc2 {[%emt 0:01:17]} Bh6 {[%emt 0:02:58]} 40. Ne2 {[%emt 0:01:19]} f6 {[%emt 0:01:08]} 41. Rcf1 {[%emt 0:00:05]} fxe5 {[%emt 0:22:24]} 42. Kg3 {[%emt 0:29:36]} e4 {[%emt 0:21:56]} 43. Qd1 {[%emt 0:25:52]} Bf8 {[%emt 0:21:10]} 44. Rf7+ {[%emt 0:24:49]} Rc7 {[%emt 0:15:22]} 45. Rxc7+ {[%emt 0:15:51]} Kxc7 {[%emt 0:15:51]} 46. Kh3 {[%emt 0:21:14]} Be7 {[%emt 0:15:29]} 47. Nc3 {[%emt 0:19:07]} Rf8 {[%emt 0:14:27]} 48. Qe1 {[%emt 0:17:43]} Kb7 {[%emt 0:14:04]} 49. Nb5 {[%emt 0:16:21]} e5 {[%emt 0:12:30]} 50. Rg3 {[%emt 0:14:06]} Rf4 {[%emt 0:09:44]} 51. dxe5 {[%emt 0:11:39]} Nxe5 {[%emt 0:09:17]} 52. Qc3 {[%emt 0:11:20]} Qh4+ {[%emt 0:07:59]} 53. Kg2 {[%emt 0:11:48]} Bc5 {[%emt 0:08:25]} 54. Ne3 {[%emt 0:09:55]} Nf3 {[%emt 0:05:26]} 55. Qg7+ {[%emt 0:09:06]} Be7 {[%emt 0:05:55]} 56. Kf2 {[%emt 0:06:00]} Nd4+ {[%emt 0:04:07]} 57. Kg2 {[%emt 0:06:19]} Nf3 {[%emt 0:04:34]} 58. Kf2 {[%emt 0:06:41]} Nd4+ {[%emt 0:04:37]} 59. Kg2 {[%emt 0:06:57]} Ne2 {[%emt 0:04:57]} 60. Nf5 {[%emt 0:06:21]} Rxf5 {[%emt 0:04:29]} 61. gxf5 {[%emt 0:06:49]} Nf4+ {[%emt 0:03:51]} 62. Kf2 {[%emt 0:04:50]} Nxh5 {[%emt 0:03:56]} 63. Qg4 {[%emt 0:03:13]} Qxg3+ {[%emt 0:01:38]} 64. Qxg3 {[%emt 0:03:36]} Nxg3 {[%emt 0:02:06]} 65. Kxg3 {[%emt 0:03:50]} Bf6 {[%emt 0:02:06]} 66. b3 {[%emt 0:02:25]} Kc6 {[%emt 0:02:28]} 67. Kf4 {[%emt 0:02:14]} Kc5 {[%emt 0:02:28]} 68. Nc7 {[%emt 0:02:13]} Kd4 {[%emt 0:02:23]} 69. Kg3 {[%emt 0:00:35]} Be5+ {[%emt 0:02:41]} 0-1

[Event "German Masters Women 2018"]
[Site "Dresden"]
[Date "2018.08.08"]
[Round "5.1"]
[White "Klek, Hanna Marie"]
[Black "Kachiani-Gersinska, Ketino"]
[Result "1/2-1/2"]
[ECO "C50"]
[WhiteElo "2268"]
[BlackElo "2347"]
[Annotator "NA"]
[PlyCount "129"]
[EventDate "2018.08.04"]
[EventType "tourn"]
[EventCountry "GER"]
[SourceTitle "playchess.com"]
[Source "ChessBase"]
[SourceQuality "1"]
[TimeControl "40/5400+30:1800+30"]

1. e4 {[%emt 1:30:28]} e5 {[%emt 1:30:24]} 2. Nf3 {[%emt 1:30:53]} Nc6 {[%emt 1:30:46]} 3. Bc4 {[%emt 1:31:20]} Bc5 {[%emt 1:30:57]} 4. O-O {[%emt 1:31:42]} Nf6 {[%emt 1:28:17]} 5. d3 {[%emt 1:32:05]} a6 {[%emt 1:28:04]} 6. a4 {[%emt 1:30:57]} O-O {[%emt 1:26:23]} 7. c3 {[%emt 1:30:46]} Ba7 {[%emt 1:25:40]} 8. h3 {[%emt 1:29:36]} h6 {[%emt 1:20:42]} 9. Re1 {[%emt 1:29:40]} d6 {[%emt 1:20:11]} 10. Na3 {[%emt 1:23:39]} Be6 {[%emt 1:12:45]} 11. Be3 {[%emt 1:22:44]} Bxc4 {[%emt 1:05:38]} 12. Nxc4 {[%emt 1:22:57]} b5 {[%emt 0:54:39]} 13. Na3 {[%emt 1:22:18]} Bxe3 {[%emt 0:51:29]} 14. Rxe3 {[%emt 1:21:56]} Rb8 {[%emt 0:50:01]} 15. b4 {[%emt 1:13:49]} Ne7 {[%emt 0:46:45]} 16. axb5 {[%emt 1:10:48]} axb5 {[%emt 0:47:10]} 17. d4 {[%emt 1:01:34]} Ng6 {[%emt 0:47:09]} 18. Nc2 {[%emt 0:59:20]} Ra8 {[%emt 0:43:59]} 19. Nd2 {[%emt 0:57:08]} Re8 {[%emt 0:40:47]} 20. Re1 {[%emt 0:47:28]} Rxa1 {[%emt 0:35:08]} 21. Qxa1 {[%emt 0:46:39]} Nf4 {[%emt 0:31:17]} 22. Qa6 {[%emt 0:37:05]} Qa8 {[%emt 0:30:00]} 23. Ra1 {[%emt 0:29:28]} Qxa6 {[%emt 0:29:32]} 24. Rxa6 {[%emt 0:29:53]} Ne2+ {[%emt 0:29:54]} 25. Kf1 {[%emt 0:30:01]} Nxc3 {[%emt 0:30:18]} 26. f3 {[%emt 0:29:02]} d5 {[%emt 0:12:08]} 27. Rc6 {[%emt 0:28:28]} Na4 {[%emt 0:12:33]} 28. Rxc7 {[%emt 0:25:20]} dxe4 {[%emt 0:11:45]} 29. fxe4 {[%emt 0:24:30]} exd4 {[%emt 0:12:04]} 30. Nxd4 {[%emt 0:24:30]} Nxe4 {[%emt 0:12:05]} 31. Nxe4 {[%emt 0:20:15]} Rxe4 {[%emt 0:12:27]} 32. Nxb5 {[%emt 0:19:48]} Rxb4 {[%emt 0:12:51]} 33. Nd6 {[%emt 0:19:29]} Rf4+ {[%emt 0:13:07]} 34. Ke2 {[%emt 0:19:41]} Nb6 {[%emt 0:13:19]} 35. Rc5 {[%emt 0:18:03]} Nd7 {[%emt 0:13:14]} 36. Rc8+ {[%emt 0:15:40]} Nf8 {[%emt 0:10:44]} 37. Ke3 {[%emt 0:13:50]} Rf6 {[%emt 0:10:36]} 38. Ne4 {[%emt 0:14:05]} Re6 {[%emt 0:10:59]} 39. Kf3 {[%emt 0:14:26]} g6 {[%emt 0:10:38]} 40. Rd8 {[%emt 0:10:16]} Kg7 {[%emt 0:09:46]} 41. Nd6 {[%emt 0:08:44]} f5 {[%emt 0:01:03]} 42. g4 {[%emt 0:07:16]} fxg4+ {[%emt 0:01:01]} 43. hxg4 {[%emt 0:07:21]} Rf6+ {[%emt 0:00:21]} 44. Kg3 {[%emt 0:07:40]} Rf1 {[%emt 0:00:12]} 45. Re8 {[%emt 0:03:22]} Rg1+ {[%emt 0:24:24]} 46. Kh3 {[%emt 0:32:51]} Rd1 {[%emt 0:18:51]} 47. Re7+ {[%emt 0:32:10]} Kf6 {[%emt 0:18:45]} 48. Rf7+ {[%emt 0:32:36]} Ke6 {[%emt 0:19:11]} 49. Rxf8 {[%emt 0:33:00]} Rxd6 {[%emt 0:19:37]} 50. Rh8 {[%emt 0:33:07]} Ke5 {[%emt 0:19:01]} 51. Rxh6 {[%emt 0:32:36]} Kf4 {[%emt 0:19:27]} 52. Rh8 {[%emt 0:32:57]} Rd3+ {[%emt 0:19:41]} 53. Kg2 {[%emt 0:33:09]} Rd2+ {[%emt 0:19:54]} 54. Kf1 {[%emt 0:32:36]} Kxg4 {[%emt 0:20:00]} 55. Ra8 {[%emt 0:30:37]} Kh3 {[%emt 0:19:44]} 56. Rg8 {[%emt 0:29:39]} Rd6 {[%emt 0:19:23]} 57. Kf2 {[%emt 0:29:29]} Kg4 {[%emt 0:19:20]} 58. Kg2 {[%emt 0:29:25]} g5 {[%emt 0:19:46]} 59. Ra8 {[%emt 0:29:31]} Rd2+ {[%emt 0:20:10]} 60. Kg1 {[%emt 0:29:46]} Kh4 {[%emt 0:20:24]} 61. Ra3 {[%emt 0:30:04]} g4 {[%emt 0:20:45]} 62. Rb3 {[%emt 0:30:17]} g3 {[%emt 0:21:07]} 63. Rb8 {[%emt 0:30:42]} Rd1+ {[%emt 0:21:25]} 64. Kg2 {[%emt 0:31:07]} Rd2+ {[%emt 0:21:50]} 65. Kg1 {[%emt 0:31:33]} 1/2-1/2

[Event "German Masters Women 2018"]
[Site "Dresden"]
[Date "2018.08.08"]
[Round "5.2"]
[White "Lubbe, Melanie"]
[Black "Hoolt, Sarah"]
[Result "1-0"]
[ECO "B36"]
[WhiteElo "2338"]
[BlackElo "2357"]
[Annotator "NA"]
[PlyCount "101"]
[EventDate "2018.08.04"]
[EventType "tourn"]
[EventCountry "GER"]
[SourceTitle "playchess.com"]
[Source "ChessBase"]
[SourceQuality "1"]
[TimeControl "40/5400+30:1800+30"]

1. e4 {[%emt 1:30:26]} c5 {[%emt 1:30:24]} 2. Nf3 {[%emt 1:30:52]} Nc6 {[%emt 1:30:47]} 3. d4 {[%emt 1:31:17]} cxd4 {[%emt 1:31:13]} 4. Nxd4 {[%emt 1:31:43]} g6 {[%emt 1:31:35]} 5. c4 {[%emt 1:28:06]} Nf6 {[%emt 1:31:29]} 6. Nc3 {[%emt 1:28:04]} d6 {[%emt 1:31:37]} 7. Be2 {[%emt 1:24:10]} Nxd4 {[%emt 1:31:54]} 8. Qxd4 {[%emt 1:24:35]} Bg7 {[%emt 1:32:20]} 9. O-O {[%emt 1:22:18]} O-O {[%emt 1:32:05]} 10. Qd1 {[%emt 1:16:31]} Be6 {[%emt 1:19:43]} 11. Be3 {[%emt 1:09:15]} Qa5 {[%emt 1:10:40]} 12. Rc1 {[%emt 0:55:51]} Rfc8 {[%emt 0:58:31]} 13. b3 {[%emt 0:55:50]} a6 {[%emt 0:54:12]} 14. Na4 {[%emt 0:45:05]} Nxe4 {[%emt 0:41:37]} 15. Nb6 {[%emt 0:34:33]} Qxa2 {[%emt 0:40:36]} 16. Bf3 {[%emt 0:26:10]} Nc3 {[%emt 0:35:56]} 17. Qd2 {[%emt 0:21:07]} Qxb3 {[%emt 0:35:19]} 18. Bd4 {[%emt 0:17:07]} Bxd4 {[%emt 0:25:38]} 19. Qxd4 {[%emt 0:17:35]} Nb5 {[%emt 0:18:18]} 20. cxb5 {[%emt 0:15:34]} Rxc1 {[%emt 0:18:42]} 21. Rxc1 {[%emt 0:16:00]} Rb8 {[%emt 0:19:03]} 22. h4 {[%emt 0:11:50]} axb5 {[%emt 0:16:10]} 23. Rc7 {[%emt 0:11:24]} Re8 {[%emt 0:13:46]} 24. Rxb7 {[%emt 0:11:15]} Qc2 {[%emt 0:11:11]} 25. Nd5 {[%emt 0:08:51]} Bxd5 {[%emt 0:11:24]} 26. Bxd5 {[%emt 0:09:17]} Qb1+ {[%emt 0:10:42]} 27. Kh2 {[%emt 0:09:42]} Qf5 {[%emt 0:11:07]} 28. Bc6 {[%emt 0:08:12]} e5 {[%emt 0:08:17]} 29. Qe3 {[%emt 0:07:03]} Rd8 {[%emt 0:06:50]} 30. Bd5 {[%emt 0:06:09]} Rd7 {[%emt 0:06:15]} 31. Rxb5 {[%emt 0:06:15]} Kg7 {[%emt 0:05:23]} 32. g3 {[%emt 0:05:09]} Qf6 {[%emt 0:05:01]} 33. Rb8 {[%emt 0:04:00]} Rc7 {[%emt 0:04:20]} 34. Kg2 {[%emt 0:04:02]} h5 {[%emt 0:04:13]} 35. Qb6 {[%emt 0:04:04]} Rc2 {[%emt 0:03:01]} 36. Rb7 {[%emt 0:03:50]} Rd2 {[%emt 0:01:56]} 37. Rxf7+ {[%emt 0:02:25]} Qxf7 {[%emt 0:02:25]} 38. Bxf7 {[%emt 0:03:32]} Kxf7 {[%emt 0:02:52]} 39. Qc7+ {[%emt 0:02:30]} Kf6 {[%emt 0:02:58]} 40. Qd8+ {[%emt 0:01:35]} Kf7 {[%emt 0:02:54]} 41. Kf3 {[%emt 0:28:53]} Rd4 {[%emt 0:23:27]} 42. Ke3 {[%emt 0:28:53]} Rd1 {[%emt 0:23:33]} 43. f3 {[%emt 0:27:35]} Rd4 {[%emt 0:21:53]} 44. g4 {[%emt 0:26:01]} hxg4 {[%emt 0:21:55]} 45. fxg4 {[%emt 0:26:27]} d5 {[%emt 0:22:10]} 46. Qd7+ {[%emt 0:25:23]} Kf8 {[%emt 0:22:20]} 47. h5 {[%emt 0:22:56]} gxh5 {[%emt 0:22:28]} 48. gxh5 {[%emt 0:23:21]} Re4+ {[%emt 0:19:50]} 49. Kd3 {[%emt 0:17:35]} Rd4+ {[%emt 0:18:47]} 50. Kc3 {[%emt 0:17:42]} Rd1 {[%emt 0:16:48]} 51. Qf5+ {[%emt 0:17:33]} 1-0